bitfinex/quotes_BTCUSD_20260308
["timestamp","ask_amount","ask_price","bid_price","bid_amount"]
[1773001267694,0.06368872,67166.0,67153.0,0.07465674]
[1773001267898,0.06368872,67163.0,67153.0,0.0002]
[1773001268102,0.07444464,67164.0,67153.0,0.0002]
[1773001268103,0.06368872,67161.0,67153.0,0.0002]
[1773001269063,0.06368872,67161.0,67157.0,0.01]
[1773001269679,0.06368872,67161.0,67153.0,0.0002]
[1773001269881,0.13813752,67161.0,67153.0,0.0002]
[1773001270492,0.13932849,67161.0,67153.0,0.0002]
[1773001270723,0.00148,67162.0,67153.0,0.24037791]
[1773001270925,0.07592719,67162.0,67153.0,0.24037791]
[1773001271128,0.07592719,67162.0,67157.0,0.0002]
[1773001271811,0.00148,67162.0,67157.0,0.0002]
[1773001272230,0.07592703,67162.0,67157.0,0.0002]
[1773001273189,0.07444703,67162.0,67157.0,0.0002]
[1773001273359,0.00148,67161.0,67157.0,0.0002]
[1773001273586,0.00148,67161.0,67157.0,0.0102]
[1773001274555,0.00022001,67170.0,67157.0,0.08465214]
[1773001274755,0.00148,67169.0,67159.0,0.06541008]
[1773001274958,0.00148,67169.0,67160.0,0.24017791]
[1773001275161,0.00148,67168.0,67160.0,0.24017791]
[1773001275559,0.07465832,67170.0,67160.0,0.24017791]
[1773001275751,0.00148,67169.0,67160.0,0.24017791]
[1773001276147,0.00148,67169.0,67161.0,0.07444796]
[1773001277121,0.07465832,67170.0,67161.0,0.07444796]
[1773001277322,0.00148,67169.0,67161.0,0.07444796]
[1773001277701,0.00148,67168.0,67161.0,0.07444796]
[1773001278119,0.07465832,67170.0,67161.0,0.07444796]
[1773001278423,0.00148,67169.0,67161.0,0.07444796]
[1773001278623,0.07465832,67170.0,67161.0,0.07444796]
[1773001278947,0.00148,67169.0,67161.0,0.07444796]
[1773001279146,0.07465832,67170.0,67161.0,0.07444796]
[1773001279325,0.00148,67168.0,67161.0,0.07444796]
[1773001280302,0.0759207,67168.0,67161.0,0.07444796]
[1773001281042,0.06487969,67166.0,67147.0,1e-08]
[1773001281377,0.06487969,67159.0,67147.0,1e-08]
[1773001281502,0.06635969,67159.0,67147.0,1e-08]
[1773001282225,0.06487969,67157.0,67147.0,1e-08]
[1773001283222,0.06587969,67157.0,67147.0,1e-08]
[1773001284177,0.06487969,67157.0,67147.0,1e-08]
[1773001284320,0.07445351,67156.0,67147.0,1e-08]
[1773001284514,0.06487969,67155.0,67147.0,0.01000001]
[1773001285537,0.06496234,67155.0,67147.0,0.01000001]
[1773001285748,0.06596234,67155.0,67147.0,0.01000001]
[1773001286751,0.07445572,67154.0,67147.0,0.01000001]
[1773001289598,0.07545572,67154.0,67147.0,0.01000001]
[1773001289805,0.07445572,67154.0,67147.0,0.01000001]
[1773001289955,0.07545572,67154.0,67147.0,0.01000001]
[1773001290901,0.07645572,67154.0,67147.0,0.01000001]
[1773001291649,0.07545572,67154.0,67147.0,0.01000001]
[1773001291859,0.07645572,67154.0,67147.0,0.01000001]
[1773001292276,0.07545572,67154.0,67147.0,0.01000001]
[1773001292566,0.07645572,67154.0,67147.0,0.01000001]
[1773001292733,0.14133541,67154.0,67148.0,0.00148]
[1773001292915,0.07645572,67154.0,67147.0,0.01000001]
[1773001293234,0.07645572,67154.0,67148.0,0.00148]
[1773001293441,0.07645572,67154.0,67147.0,0.01000001]
[1773001293641,0.14033541,67154.0,67149.0,0.00148]
[1773001293845,0.14133541,67154.0,67149.0,0.00148]
[1773001294223,0.14033541,67154.0,67149.0,0.00148]
[1773001294607,0.14133541,67154.0,67149.0,0.00148]
[1773001294809,0.14033541,67154.0,67149.0,0.00148]
[1773001295214,0.14133541,67154.0,67149.0,0.00148]
[1773001295829,0.14033541,67154.0,67149.0,0.00148]
[1773001296032,0.14133541,67154.0,67149.0,0.00148]
[1773001300285,0.07645572,67154.0,67149.0,0.00148]
[1773001300708,0.07645572,67154.0,67149.0,0.00168]
[1773001305300,0.07444131,67167.0,67149.0,0.07614052]
[1773001305505,0.22233492,67169.0,67149.0,0.08625941]
[1773001305703,0.07466132,67169.0,67149.0,0.08625941]
[1773001305847,0.22233492,67169.0,67149.0,0.08625941]
[1773001306049,0.07466132,67169.0,67151.0,0.06723785]
[1773001306245,0.07466132,67169.0,67153.0,0.06723785]
[1773001306450,0.07466132,67169.0,67155.0,0.30599378]
[1773001306647,0.07466132,67169.0,67156.0,0.00148]
[1773001307143,0.14073434,67169.0,67156.0,0.00148]
[1773001307309,0.28843884,67169.0,67156.0,0.00148]
[1773001311563,0.28843884,67169.0,67157.0,0.00148]
[1773001314577,0.28843884,67169.0,67157.0,0.08593234]
[1773001315739,0.28843884,67169.0,67157.0,0.01148]
[1773001320911,0.31002248,67168.0,67146.0,0.07446445]
[1773001321215,0.06607302,67159.0,67150.0,0.00148]
[1773001321811,0.06607302,67159.0,67151.0,0.00148]
[1773001322866,0.07445129,67158.0,67151.0,0.0759388]
[1773001323237,0.07445129,67158.0,67151.0,0.0744588]
[1773001323453,0.07445129,67158.0,67152.0,0.00148]
[1773001325225,0.07444842,67161.0,67152.0,0.00148]
[1773001325422,0.13790856,67161.0,67152.0,0.00148]
[1773001326020,0.13790856,67161.0,67152.0,0.01148]
[1773001326188,0.13790856,67161.0,67152.0,0.01]
[1773001326391,0.13790856,67161.0,67153.0,0.00148]
[1773001327175,0.13790856,67161.0,67152.0,0.0102]
[1773001327375,0.13790856,67161.0,67153.0,0.00148]
[1773001328550,0.13790856,67161.0,67152.0,0.08465793]
[1773001328784,0.13790856,67161.0,67153.0,0.00148]
[1773001330112,0.13790856,67161.0,67152.0,0.08465789]
[1773001330477,0.13790856,67161.0,67153.0,0.00148]
[1773001330860,0.07444842,67161.0,67153.0,0.00148]
[1773001331939,0.07444796,67163.0,67153.0,0.00148]
[1773001332955,0.06816652,67162.0,67153.0,0.00148]
[1773001334170,0.07444796,67161.0,67153.0,0.00148]
[1773001336785,0.07444796,67161.0,67152.0,0.08465789]
[1773001337105,0.07444796,67161.0,67153.0,0.00148]
[1773001339099,0.07444796,67161.0,67153.0,0.07593652]
[1773001339305,0.07444539,67164.0,67156.0,0.06785683]
[1773001339967,0.07444796,67162.0,67156.0,0.06785683]
[1773001340585,0.07444796,67162.0,67154.0,0.00148]
[1773001343587,0.06816652,67162.0,67152.0,0.0102]
[1773001343801,0.06816652,67161.0,67149.0,0.00031889]
[1773001343947,0.06816652,67157.0,67145.0,0.0002]
[1773001344306,0.06816652,67154.0,67145.0,0.00176265]
[1773001344945,0.06816652,67154.0,67145.0,0.00276265]
[1773001345150,0.06816652,67154.0,67145.0,0.00176265]
[1773001345389,0.06816652,67154.0,67151.0,0.0002]
[1773001345591,0.07445683,67153.0,67145.0,0.00176265]
[1773001346055,0.06816652,67152.0,67145.0,0.00028265]
[1773001347587,0.07445905,67151.0,67145.0,0.00028265]
[1773001348121,0.06816652,67150.0,67145.0,0.00028265]
[1773001349608,0.14262779,67149.0,67145.0,0.00028265]
[1773001349806,0.06816652,67148.0,67145.0,0.00028265]
[1773001350010,0.23429977,67147.0,67138.0,0.0002]
[1773001350248,0.06816652,67146.0,67140.0,0.00238106]
[1773001352058,0.14263111,67146.0,67145.0,0.0002]
[1773001352261,0.14263111,67146.0,67140.0,0.00238106]
[1773001353204,0.14363111,67146.0,67140.0,0.00238106]
[1773001353933,0.14363111,67146.0,67140.0,0.00090106]
[1773001354492,0.06816652,67144.0,67137.0,0.00148]
[1773001354667,0.06816652,67144.0,67135.0,0.0002]
[1773001354668,0.06856347,67144.0,67135.0,0.0002]
[1773001354870,0.06856347,67144.0,67136.0,0.00148]
[1773001355590,0.06956347,67144.0,67136.0,0.00148]
[1773001355783,0.06856347,67144.0,67136.0,0.00148]
[1773001356163,0.07446792,67143.0,67136.0,0.00148]
[1773001358510,0.06816652,67142.0,67135.0,0.0002]
[1773001358840,0.06327424,67141.0,67135.0,0.00148]
[1773001359623,0.06327424,67141.0,67131.0,0.0003538]
[1773001360675,0.07447125,67140.0,67131.0,0.0003538]
[1773001360887,0.13774549,67140.0,67131.0,0.0003538]
[1773001361520,0.06327424,67139.0,67131.0,0.0003538]
[1773001361691,0.06327424,67138.0,67131.0,0.0003538]
[1773001362647,0.07447458,67137.0,67131.0,0.0003538]
[1773001362850,0.13774882,67137.0,67131.0,0.0003538]
[1773001366619,0.07447458,67137.0,67129.0,0.0002]
[1773001366791,0.06327424,67136.0,67129.0,0.0002]
[1773001369187,0.0744768,67135.0,67129.0,0.0002]
[1773001371011,0.06327424,67134.0,67125.0,0.07596738]
[1773001371748,0.07447901,67133.0,67125.0,0.07596738]
[1773001373649,0.07447901,67133.0,67125.0,0.07616738]
[1773001382005,0.13775325,67133.0,67125.0,0.07616738]
[1773001383655,0.07447901,67133.0,67125.0,0.07616738]
[1773001384178,0.07447898,67134.0,67125.0,0.07616738]
[1773001388378,0.07447901,67135.0,67125.0,0.07616738]
[1773001389277,0.07447901,67133.0,67125.0,0.07616738]
[1773001397659,0.07274234,67133.0,67125.0,0.07616738]
[1773001398021,0.07296235,67133.0,67125.0,0.07616738]
[1773001405864,0.0746988,67134.0,67125.0,0.07616738]
[1773001406035,0.0744768,67135.0,67128.0,0.06610494]
[1773001407052,0.00022001,67133.0,67128.0,0.2342922]
[1773001407249,0.00022001,67133.0,67129.0,0.06610494]
[1773001407470,0.00022001,67133.0,67130.0,0.00148]
[1773001408996,0.07469918,67133.0,67130.0,0.00148]
[1773001413187,0.07447569,67136.0,67130.0,0.00148]
[1773001414870,0.00022001,67133.0,67130.0,0.00148]
[1773001415220,0.07443569,67138.0,67130.0,0.00148]
[1773001416363,0.07443569,67138.0,67130.0,0.07596229]
[1773001420372,0.01890805,67139.0,67130.0,0.07596229]
[1773001420566,0.07447569,67138.0,67130.0,0.07596229]
[1773001421008,0.22272679,67140.0,67131.0,0.06069965]
[1773001421163,0.06486966,67139.0,67128.0,0.07448236]
[1773001421364,0.13387646,67140.0,67126.0,0.07448669]
[1773001421365,0.22764523,67136.0,67127.0,0.07448567]
[1773001421565,0.66654263,67140.0,67128.0,0.00148]
[1773001421566,0.22764523,67135.0,67128.0,0.00148]
[1773001421770,0.06486966,67134.0,67128.0,0.00148]
[1773001423595,0.06486966,67134.0,67129.0,0.00148]
[1773001426128,0.06486966,67134.0,67129.0,0.07596246]
[1773001426715,0.06486966,67133.0,67129.0,0.00148]
[1773001427059,0.06338966,67133.0,67129.0,0.07596324]
[1773001429279,0.06338966,67133.0,67129.0,0.00148]
[1773001430023,0.06486966,67133.0,67129.0,0.00148]
[1773001431320,0.06486966,67133.0,67129.0,0.0761634]
[1773001431867,0.07461498,67134.0,67129.0,0.0761634]
[1773001433090,0.0001369,67134.0,67129.0,0.0761634]
[1773001433345,0.06486966,67133.0,67128.0,0.07596452]
[1773001433497,0.06486966,67133.0,67123.0,0.00035]
[1773001433498,0.22764523,67130.0,67108.0,0.07450583]
[1773001433835,0.05918513,67120.0,67108.0,0.07598583]
[1773001434123,0.12405479,67120.0,67108.0,0.07598583]
[1773001434336,0.12405479,67120.0,67109.0,0.00148]
[1773001434476,0.12405479,67120.0,67108.0,0.07450583]
[1773001434687,0.12405479,67120.0,67109.0,0.00148]
[1773001434891,0.12405479,67120.0,67110.0,0.00148]
[1773001435090,0.07449566,67118.0,67111.0,0.00148]
[1773001435312,0.06486966,67117.0,67111.0,0.00148]
[1773001435537,0.06486966,67117.0,67108.0,0.07450583]
[1773001435747,0.06486966,67117.0,67109.0,0.00148]
[1773001436309,0.06486966,67117.0,67106.0,0.08154676]
[1773001436507,0.06486966,67116.0,67106.0,0.08150676]
[1773001436712,0.06486966,67115.0,67106.0,0.00552]
[1773001436914,0.06486966,67114.0,67106.0,0.00552]
[1773001437137,0.07450121,67113.0,67106.0,0.00552]
[1773001437338,0.06486966,67112.0,67106.0,0.00552]
[1773001439010,0.06486966,67112.0,67097.0,0.07464123]
[1773001439128,0.07450565,67109.0,67101.0,0.00148]
[1773001439333,0.13937531,67109.0,67101.0,0.00148]
[1773001440228,0.06486966,67108.0,67104.0,0.0002]
[1773001440504,0.06486966,67108.0,67099.0,0.00148]
[1773001440505,0.06486966,67107.0,67099.0,0.00148]
[1773001440705,0.06486966,67107.0,67089.0,0.1352273]
[1773001440706,0.06634966,67107.0,67090.0,0.0001229]
[1773001440909,0.06486966,67099.0,67090.0,0.0001229]
[1773001441063,0.06486966,67099.0,67090.0,0.0016029]
[1773001441263,0.06486966,67097.0,67090.0,0.0016029]
[1773001443403,0.07451501,67101.0,67090.0,0.07612958]
[1773001443612,0.06486966,67100.0,67090.0,0.07612958]
[1773001443809,0.12405479,67100.0,67090.0,0.07612958]
[1773001445509,0.07451675,67099.0,67090.0,0.07612958]
[1773001446311,0.0660828,67098.0,67090.0,0.07612958]
[1773001446822,0.0660828,67098.0,67090.0,0.07632958]
[1773001448980,0.07451897,67097.0,67090.0,0.07632958]
[1773001449164,0.06576502,67096.0,67090.0,0.07632958]
[1773001449365,0.06576502,67096.0,67088.0,0.07475876]
[1773001449565,0.06576502,67096.0,67089.0,0.07452786]
[1773001451307,0.1402855,67096.0,67089.0,0.07452786]
[1773001453311,0.1401355,67096.0,67089.0,0.07452786]
[1773001453988,0.1401355,67096.0,67089.0,0.07472786]
[1773001455079,0.07452048,67096.0,67089.0,0.0748469]
[1773001456564,0.07452048,67096.0,67089.0,0.07484662]
[1773001457186,0.07452048,67096.0,67089.0,0.00031904]
[1773001458781,0.07473898,67097.0,67082.0,0.07621552]
[1773001458984,0.07473159,67104.0,67086.0,0.2247286]
[1773001459182,0.07451342,67102.0,67090.0,0.0628725]
[1773001459411,0.05925731,67100.0,67090.0,0.0628725]
[1773001459944,0.06073731,67100.0,67090.0,0.0628725]
[1773001461194,0.07451675,67099.0,67091.0,0.07452564]
[1773001463770,0.00022001,67097.0,67091.0,0.07452564]
[1773001465467,0.00022001,67097.0,67090.0,0.07452623]
[1773001465468,0.07473914,67097.0,67090.0,0.07452623]
[1773001469617,0.07473914,67097.0,67089.0,0.0002]
[1773001469993,0.07473914,67097.0,67089.0,0.00035]
[1773001471057,0.10101175,67063.0,67061.0,0.07455842]
[1773001471262,0.1072422,67071.0,67053.0,0.0628725]
[1773001471483,0.03,67064.0,67053.0,0.0628725]
[1773001471633,0.03,67062.0,67053.0,0.0628725]
[1773001472041,0.03,67062.0,67054.0,0.0643525]
[1773001472447,0.03,67062.0,67054.0,0.00148]
[1773001472648,0.03,67062.0,67050.0,0.0100995]
[1773001472860,0.08925731,67060.0,67050.0,0.0100995]
[1773001473048,0.03,67058.0,67050.0,0.0100995]
[1773001473420,0.13438846,67052.0,67040.0,0.00023]
[1773001473643,0.03,67049.0,67041.0,0.00148]
[1773001473808,0.03,67047.0,67040.0,0.00023]
[1773001474603,0.03,67047.0,67035.0,0.0628725]
[1773001474777,0.03039636,67047.0,67035.0,0.0628725]
[1773001475121,0.03039636,67047.0,67030.0,0.0190069]
[1773001475295,0.09576502,67043.0,67031.0,0.07459177]
[1773001475703,0.03,67041.0,67031.0,0.07459177]
[1773001476079,0.03,67041.0,67032.0,1.13746317]
[1773001476272,0.03,67041.0,67035.0,0.07458732]
[1773001476809,0.03,67039.0,67032.0,1.13746302]
[1773001477128,0.02984797,67039.0,67032.0,1.13746302]
[1773001477328,0.02984797,67039.0,67032.0,1.00148]
[1773001477905,0.02969594,67037.0,67033.0,0.0628725]
[1773001479251,0.02969594,67037.0,67032.0,1.00148]
[1773001479552,0.02969594,67037.0,67033.0,0.06015022]
[1773001479754,0.07458456,67038.0,67032.0,1.00148]
[1773001480313,0.03862344,67036.0,67032.0,1.06163022]
[1773001480709,0.07457711,67045.0,67035.0,0.06015022]
[1773001481815,0.07457711,67045.0,67033.0,0.06015022]
[1773001482354,0.07457711,67045.0,67034.0,0.07458901]
[1773001482761,0.07457711,67045.0,67034.0,0.13473923]
[1773001483955,0.07457711,67045.0,67034.0,0.07458901]
[1773001485481,0.07457711,67045.0,67035.0,0.06015022]
[1773001486009,0.07457711,67045.0,67033.0,0.07459012]
[1773001486561,0.06176849,67044.0,67032.0,1.00148]
[1773001486751,0.06176849,67044.0,67032.0,1.07607072]
[1773001487400,0.07457711,67045.0,67032.0,1.13622094]
[1773001487747,0.07457711,67045.0,67034.0,0.0002]
[1773001488575,0.1363456,67045.0,67034.0,0.0002]
[1773001488774,0.07457711,67045.0,67034.0,0.0002]
[1773001488983,0.1363456,67045.0,67034.0,0.0002]
[1773001489382,0.07457711,67045.0,67034.0,0.0002]
[1773001491478,0.07442711,67045.0,67034.0,0.0002]
[1773001492423,0.07457232,67049.0,67035.0,0.22228595]
[1773001492738,0.07456343,67057.0,67038.0,0.06015022]
[1773001492939,0.07456343,67057.0,67043.0,0.06015022]
[1773001493149,0.07456343,67057.0,67045.0,0.06015022]
[1773001493349,0.07456343,67057.0,67047.0,0.06015022]
[1773001494677,0.07456286,67058.0,67047.0,0.06015022]
[1773001495081,0.07456286,67058.0,67048.0,0.07457343]
[1773001496478,0.17751151,67085.0,67049.0,0.22228595]
[1773001496641,0.00148,67063.0,67052.0,0.06015022]
[1773001497185,0.07455787,67062.0,67053.0,0.13471809]
[1773001497592,0.07455787,67062.0,67053.0,0.08211966]
[1773001497769,0.2373536,67060.0,67050.0,0.07457068]
[1773001497957,0.06176849,67059.0,67050.0,0.07457068]
[1773001498153,0.06176849,67059.0,67046.0,0.00148]
[1773001498470,0.06176849,67056.0,67046.0,0.07457519]
[1773001499500,0.06176849,67054.0,67046.0,0.07457519]
[1773001500887,0.07456565,67055.0,67046.0,0.07457519]
[1773001501389,0.13633414,67055.0,67046.0,0.07457519]
[1773001501732,0.07456565,67055.0,67038.0,0.00148]
[1773001501905,0.06176849,67049.0,67038.0,0.00148]
[1773001502316,0.06176849,67048.0,67036.0,0.07458678]
[1773001502890,0.13632968,67060.0,67036.0,0.07458678]
[1773001503209,0.13632968,67060.0,67041.0,0.06015022]
[1773001503210,0.00022001,67054.0,67041.0,0.06015022]
[1773001503379,0.22221246,67059.0,67044.0,0.22386118]
[1773001503380,0.22221205,67059.0,67044.0,0.22386118]
[1773001503579,0.0745617,67059.0,67048.0,0.06015022]
[1773001505627,0.13301739,67059.0,67047.0,0.07457455]
[1773001505981,0.0745617,67059.0,67047.0,0.07457455]
[1773001506191,0.0745617,67059.0,67048.0,0.06295604]
[1773001506764,0.00148,67060.0,67048.0,0.06295604]
[1773001506963,0.00148,67060.0,67050.0,0.21546891]
[1773001507171,0.00022001,67061.0,67051.0,0.06443604]
[1773001507393,0.07477946,67061.0,67052.0,0.06295604]
[1773001507792,0.07477959,67061.0,67052.0,0.13752402]
[1773001508824,0.07477959,67061.0,67051.0,0.07604929]
[1773001509005,0.07477959,67061.0,67051.0,0.13710348]
[1773001511432,0.00022001,67061.0,67052.0,0.06105419]
[1773001511810,0.07455898,67063.0,67053.0,0.07456787]
[1773001512038,0.07603536,67065.0,67055.0,0.06105419]
[1773001513356,0.07603536,67065.0,67053.0,0.07456787]
[1773001514828,0.22368571,67065.0,67053.0,0.13562206]
[1773001515056,0.07603536,67065.0,67053.0,0.07456787]
[1773001515207,0.07603536,67065.0,67054.0,0.06105419]
[1773001516769,0.07603536,67065.0,67055.0,0.07456565]
[1773001517073,0.07603536,67065.0,67055.0,0.0468028]
[1773001517844,0.07455536,67065.0,67055.0,0.0468028]
[1773001519521,0.07477537,67065.0,67054.0,0.06105419]
[1773001519691,0.07477537,67065.0,67052.0,0.07456879]
[1773001519692,0.05912656,67064.0,67052.0,0.07456879]
[1773001520663,0.07477537,67065.0,67053.0,0.06105419]
[1773001520867,0.07477537,67065.0,67055.0,0.06105419]
[1773001521718,0.07477537,67065.0,67056.0,0.13561873]
[1773001522974,0.07455536,67065.0,67057.0,0.06105419]
[1773001523526,0.07455536,67065.0,67058.0,0.07456231]
[1773001523726,0.07455536,67065.0,67059.0,0.06105419]
[1773001524379,0.07477352,67066.0,67059.0,0.06105419]
[1773001525868,0.07477352,67066.0,67059.0,0.13561531]
[1773001526243,0.00022001,67066.0,67059.0,0.13561531]
[1773001526448,0.14765035,67071.0,67062.0,0.06105419]
[1773001526653,0.22241753,67072.0,67062.0,0.06105419]
[1773001527248,0.07476718,67072.0,67062.0,0.06105419]
[1773001527995,0.07476718,67072.0,67062.0,0.07455736]
[1773001528205,0.07476718,67072.0,67061.0,0.07603865]
[1773001528456,0.05912656,67070.0,67061.0,0.07603865]
[1773001528623,0.00022001,67066.0,67061.0,0.07603865]
[1773001529000,0.00022001,67066.0,67061.0,0.07455865]
[1773001530761,0.00022001,67066.0,67057.0,0.07456327]
[1773001530762,0.05912656,67064.0,67057.0,0.07456327]
[1773001531928,0.05912656,67064.0,67056.0,0.07468294]
[1773001532559,0.13368232,67064.0,67056.0,0.00011925]
[1773001533166,0.05912656,67064.0,67056.0,0.00011925]
[1773001533586,0.00022001,67066.0,67056.0,0.00011925]
[1773001534172,0.07455453,67065.0,67056.0,0.00011925]
[1773001535736,0.07477403,67066.0,67056.0,0.00011925]
[1773001537220,0.07477403,67066.0,67056.0,0.00031925]
[1773001538640,0.07477403,67066.0,67057.0,0.07456343]
[1773001539854,0.00022001,67066.0,67057.0,0.1360073]
[1773001540363,0.07477371,67066.0,67057.0,0.1360073]
[1773001540659,0.07454983,67070.0,67060.0,0.06144387]
[1773001540837,0.07454801,67071.0,67060.0,0.06144387]
[1773001541041,0.07602801,67071.0,67060.0,0.06144387]
[1773001541627,0.07454801,67071.0,67060.0,0.06292387]
[1773001542664,0.07454801,67071.0,67061.0,0.07455898]
[1773001546006,0.00022001,67071.0,67064.0,0.06144387]
[1773001546156,0.07476574,67073.0,67064.0,0.06144387]
[1773001546755,0.07476574,67073.0,67065.0,0.07455453]
[1773001548601,0.07476574,67073.0,67064.0,0.07455453]
[1773001548784,0.05774062,67069.0,67059.0,0.0745612]
[1773001548974,0.05774062,67069.0,67059.0,0.0760412]
[1773001551435,0.05774062,67067.0,67059.0,0.0760412]
[1773001553737,0.07455342,67066.0,67059.0,0.0762412]
[1773001554829,0.22280872,67063.0,67049.0,0.07477141]
[1773001555032,0.22280872,67059.0,67049.0,0.07489053]
[1773001555230,0.05922062,67058.0,67049.0,0.07489053]
[1773001555605,0.07456343,67057.0,67049.0,0.07489053]
[1773001558922,0.13230405,67057.0,67049.0,0.07489053]
[1773001559370,0.07456343,67057.0,67049.0,0.07489053]
[1773001559684,0.05774062,67056.0,67049.0,0.07489053]
[1773001560656,0.05774062,67054.0,67046.0,0.00148]
[1773001560858,0.05774062,67054.0,67043.0,0.0002]
[1773001560859,0.05774062,67053.0,67043.0,0.0002]
[1773001561058,0.05774062,67053.0,67043.0,0.0747783]
[1773001562161,0.05922062,67053.0,67049.0,0.0002]
[1773001562486,0.0001189,67054.0,67045.0,0.06144387]
[1773001562632,0.0001189,67054.0,67043.0,0.0747783]
[1773001562633,0.07604897,67053.0,67043.0,0.0747783]
[1773001565943,0.07456897,67053.0,67043.0,0.0747783]
[1773001566565,0.06092346,67052.0,67043.0,0.0747783]
[1773001567424,0.13549312,67052.0,67043.0,0.0747783]
[1773001568618,0.07456966,67052.0,67043.0,0.0747783]
[1773001568998,0.07456966,67052.0,67043.0,0.13413944]
[1773001575679,0.07456966,67052.0,67043.0,0.0747783]
[1773001575854,0.07347342,67052.0,67043.0,0.0747783]
[1773001576236,0.06568912,67052.0,67043.0,0.0747783]
[1773001576439,0.06475524,67052.0,67043.0,0.0747783]
[1773001576974,0.06475524,67052.0,67043.0,0.13413944]
[1773001578874,0.22199527,67077.0,67044.0,0.05936114]
[1773001579177,0.07604173,67059.0,67047.0,0.05936114]
[1773001579322,0.07604173,67059.0,67047.0,0.00148]
[1773001579527,0.07456173,67059.0,67049.0,0.07457232]
[1773001579729,0.00148,67065.0,67051.0,0.21919717]
[1773001579934,0.00022001,67067.0,67053.0,0.21919717]
[1773001580130,0.07477235,67067.0,67055.0,0.27855831]
[1773001580734,0.07477235,67067.0,67055.0,0.21919717]
[1773001580953,0.07477235,67067.0,67056.0,0.05936114]
[1773001582392,0.07477235,67067.0,67057.0,0.07456343]
[1773001582598,0.06097946,67066.0,67057.0,0.07456343]
[1773001584302,0.07477235,67067.0,67057.0,0.07456343]
[1773001585636,0.07477235,67067.0,67056.0,0.07456394]
[1773001586587,0.13575181,67067.0,67056.0,0.07456394]
[1773001586986,0.00022001,67073.0,67056.0,0.07456394]
[1773001587210,0.07476626,67073.0,67058.0,0.21919717]
[1773001587409,0.00148,67072.0,67058.0,0.27855831]
[1773001587787,0.07602786,67071.0,67059.0,0.0745612]
[1773001588133,0.07602786,67071.0,67059.0,0.13540234]
[1773001588906,0.07626296,67071.0,67059.0,0.13540234]
[1773001589543,0.06097946,67070.0,67059.0,0.0760412]
[1773001589705,0.00022001,67067.0,67059.0,0.0760412]
[1773001590014,0.00045511,67067.0,67059.0,0.0760412]
[1773001594465,0.00045511,67067.0,67060.0,0.05936114]
[1773001598616,0.00185281,67075.0,67064.0,0.05584049]
[1773001598810,0.00037281,67075.0,67066.0,0.05584049]
[1773001599730,0.00037281,67075.0,67066.0,0.20886207]
[1773001599936,0.00032077,67074.0,67067.0,0.05584049]
[1773001600254,0.00022001,67078.0,67067.0,0.05584049]
[1773001600483,0.05861724,67083.0,67067.0,0.00010076]
[1773001600484,0.07468744,67083.0,67067.0,0.00010076]
[1773001600654,0.07453587,67082.0,67070.0,0.05584049]
[1773001600853,0.07475681,67081.0,67071.0,0.00148]
[1773001602826,0.07475681,67081.0,67072.0,0.07454675]
[1773001608894,0.00022001,67081.0,67072.0,0.07454675]
[1773001613535,0.07475729,67081.0,67067.0,0.0746529]
[1773001613698,0.27296068,67080.0,67067.0,0.0746529]
[1773001613901,0.21449624,67078.0,67067.0,0.0746529]
[1773001614118,0.05846444,67077.0,67067.0,0.0746529]
[1773001614545,0.00148,67076.0,67067.0,0.0746529]
[1773001614843,0.07602243,67076.0,67067.0,0.00010076]
[1773001615202,0.00148,67079.0,67068.0,0.05584049]
[1773001615412,0.00148,67079.0,67069.0,0.05732049]
[1773001615619,0.07475324,67085.0,67069.0,0.05732049]
[1773001615620,0.0016328,67083.0,67071.0,0.05584049]
[1773001615820,0.0016328,67083.0,67073.0,0.05584049]
[1773001616147,0.07468771,67083.0,67073.0,0.05584049]
[1773001616383,0.0761674,67083.0,67071.0,0.05584049]
[1773001616664,0.00022001,67081.0,67071.0,0.05584049]
[1773001616868,0.00022001,67081.0,67072.0,0.13038724]
[1773001620818,0.00022001,67081.0,67072.0,0.07454675]
[1773001622955,0.00022001,67081.0,67072.0,0.07474675]
[1773001625390,0.00022001,67081.0,67072.0,0.00035]
[1773001627425,0.00022001,67081.0,67073.0,0.07454564]
[1773001627725,0.00022001,67081.0,67074.0,0.00148]
[1773001629597,0.00022001,67081.0,67075.0,0.07454342]
[1773001631948,0.07475787,67081.0,67052.0,0.00577]
[1773001632121,0.07475787,67081.0,67062.0,0.07455682]
[1773001632122,0.2152865,67074.0,67062.0,0.07455682]
[1773001632318,0.05909521,67071.0,67062.0,0.07451682]
[1773001632519,0.05921439,67071.0,67062.0,0.07451682]
[1773001634138,0.05921439,67071.0,67059.0,0.00168]
[1773001634139,0.13364418,67070.0,67059.0,0.00168]
[1773001634955,0.13364418,67070.0,67059.0,0.0002]
[1773001635102,0.05909521,67069.0,67060.0,0.00148]
[1773001635749,0.05909521,67069.0,67059.0,0.0002]
[1773001636246,0.07455076,67069.0,67059.0,0.0747612]
[1773001636424,0.13364597,67069.0,67059.0,0.0747612]
[1773001637210,0.13364597,67069.0,67060.0,0.0002]
[1773001638664,0.05909521,67069.0,67060.0,0.0002]
[1773001639764,0.07453581,67082.0,67060.0,0.0002]
[1773001639966,0.00148,67079.0,67060.0,0.00031918]
[1773001640179,0.00148,67079.0,67062.0,0.05734429]
[1773001640376,0.00148,67079.0,67067.0,0.05734429]
[1773001640377,0.07601946,67079.0,67067.0,0.05734429]
[1773001640577,0.07453946,67079.0,67068.0,0.00148]
[1773001643370,0.07453946,67079.0,67069.0,0.07455009]
[1773001643537,0.07453858,67080.0,67069.0,0.07455009]
[1773001647420,0.13363379,67080.0,67069.0,0.07455009]
[1773001649715,0.05909521,67079.0,67069.0,0.07455009]
[1773001650446,0.05918481,67079.0,67069.0,0.07455009]
[1773001651582,0.07454008,67078.0,67069.0,0.07455009]
[1773001652353,0.07450008,67078.0,67069.0,0.07455009]
[1773001652563,0.05909521,67077.0,67069.0,0.07455009]
[1773001652960,0.07458968,67078.0,67069.0,0.07455009]
[1773001654768,0.05909521,67077.0,67069.0,0.07455009]
[1773001655458,0.05918481,67077.0,67069.0,0.07455009]
[1773001657401,0.07454231,67076.0,67069.0,0.07455009]
[1773001657576,0.07463191,67076.0,67069.0,0.07455009]
[1773001657772,0.13372712,67076.0,67069.0,0.07455009]
[1773001659397,0.13372712,67076.0,67068.0,0.0002]
[1773001659601,0.13372712,67076.0,67068.0,0.00168]
[1773001660919,0.13372712,67076.0,67068.0,0.0002]
[1773001661086,0.13372712,67076.0,67068.0,0.00168]
[1773001661289,0.05918481,67076.0,67068.0,0.00168]
[1773001661491,0.07454342,67075.0,67068.0,0.07475077]
[1773001661693,0.12637143,67075.0,67068.0,0.07623077]
[1773001662116,0.12637143,67075.0,67068.0,0.07475077]
[1773001662735,0.12646103,67075.0,67068.0,0.0002]
[1773001664637,0.12646103,67075.0,67068.0,0.0747512]
[1773001666225,0.07463302,67075.0,67068.0,0.0747512]